bitfinex-derivatives/quotes_SOLF0:USTF0_20250816
["timestamp","ask_amount","ask_price","bid_price","bid_amount"]
[1755344273430,4.49754489,187.06,186.98,0.03537682]
[1755344273431,3.14,187.04,187.03,4.68482417]
[1755344275422,4.49754489,187.07,187.03,4.68482417]
[1755344275621,3.14,187.06,187.04,2.84]
[1755344275826,3.14,187.06,187.03,1.84482417]
[1755344275827,3.14,187.06,187.05,2.84]
[1755344276026,3.14,187.06,187.04,2.84]
[1755344276227,3.14,187.06,187.03,1.84482417]
[1755344276528,3.14,187.06,187.03,4.68482417]
[1755344277128,3.14,187.06,187.04,2.84]
[1755344279625,3.14,187.06,187.05,4.68482417]
[1755344279930,3.14,187.06,187.05,2.84]
[1755344280130,3.14,187.06,187.04,1.84482417]
[1755344280429,3.14,187.06,187.04,4.68482417]
[1755344282334,3.14,187.06,187.04,1.84482417]
[1755344282534,3.14,187.06,187.05,2.84]
[1755344285144,7.18256232,187.06,187.05,2.84]
[1755344287741,4.04256232,187.06,187.05,2.84]
[1755344287942,7.18256232,187.06,187.05,2.84]
[1755344288842,4.04256232,187.06,187.05,2.84]
[1755344289543,73.80363552,187.09,187.05,2.84]
[1755344289745,76.94363552,187.09,187.08,4.68482417]
[1755344289946,7.16823204,187.09,187.08,4.68482417]
[1755344295250,3.14,187.09,187.08,4.68482417]
[1755344298456,7.16202065,187.09,187.08,4.68482417]
[1755344299348,3.14,187.09,187.08,4.68482417]
[1755344302259,3.14,187.09,187.07,0.04075191]
[1755344302555,8.78579061,187.08,187.02,4.82482417]
[1755344302755,2.92,187.06,187.02,2.98]
[1755344302954,2.92,187.06,187.0,1.84482417]
[1755344303260,2.92,187.06,187.02,1.84482417]
[1755344303461,2.92,187.06,187.04,2.98]
[1755344304360,0.03534923,187.07,187.04,2.98]
[1755344304361,2.92,187.05,187.04,2.98]
[1755344304562,0.03534923,187.07,187.04,4.82482417]
[1755344304756,2.92,187.05,187.04,4.82482417]
[1755344306160,2.92,187.05,187.04,10.16752417]
[1755344306455,0.03534923,187.07,187.05,2.98]
[1755344306657,4.02421413,187.06,187.05,2.98]
[1755344307563,2.95534923,187.07,187.05,2.98]
[1755344308264,2.95534923,187.07,187.05,5.3424]
[1755344308464,2.95534923,187.07,187.06,2.98]
[1755344308664,6.98061544,187.07,187.06,2.98]
[1755344310365,2.92,187.06,187.04,1.84482417]
[1755344310561,2.92,187.05,187.04,2.98]
[1755344310761,6.9464449,187.05,187.04,2.98]
[1755344312559,2.92,187.04,187.02,4.82482417]
[1755344312755,0.03534923,187.07,187.03,2.98]
[1755344312967,4.02787143,187.06,187.03,2.98]
[1755344313161,4.02787143,187.05,187.03,2.98]
[1755344313361,6.94787143,187.04,187.03,2.98]
[1755344315562,4.02787143,187.04,187.03,2.98]
[1755344315764,2.92,187.06,187.03,2.98]
[1755344316070,4.02952804,187.05,187.04,4.82482417]
[1755344318071,6.94952804,187.05,187.04,4.82482417]
[1755344323075,6.94952804,187.05,187.02,1.84482417]
[1755344323274,2.92,187.03,187.02,4.82482417]
[1755344323874,6.96567274,187.03,187.02,4.82482417]
[1755344324371,6.96567274,187.03,187.0,5.344]
[1755344324372,6.96567274,187.03,187.01,2.98]
[1755344324572,6.96567274,187.02,187.01,2.98]
[1755344326570,6.96495044,187.02,187.01,2.98]
[1755344327575,6.96459285,187.02,187.01,2.98]
[1755344329675,2.84,187.06,187.01,2.98]
[1755344329976,6.88388002,187.05,187.04,3.02]
[1755344335079,6.88317703,187.05,187.04,3.02]
[1755344338081,2.84,187.04,187.01,4.86482417]
[1755344338281,6.88317703,187.03,187.02,3.02]
[1755344339584,6.88317703,187.03,187.02,4.86482417]
[1755344340673,6.88317703,187.03,187.02,1.84482417]
[1755344340978,6.88317703,187.03,187.02,4.86482417]
[1755344342881,2.84,187.05,187.02,4.86482417]
[1755344343182,4.04593957,187.04,187.03,3.02]
[1755344343386,6.88593957,187.04,187.03,3.02]
[1755344354696,6.88997377,187.04,187.03,3.02]
[1755344355398,4.04997377,187.04,187.03,3.02]
[1755344357994,6.88997377,187.04,187.03,3.02]
[1755344368600,4.04997377,187.04,187.02,1.84482417]
[1755344368801,2.95,187.02,187.0,4.89482417]
[1755344368996,4.04997377,187.01,187.0,4.89482417]
[1755344369202,6.99997377,187.01,187.0,4.89482417]
[1755344374002,6.99997377,187.01,187.0,3.05]
[1755344376099,6.99997377,187.01,186.92,174.0]
[1755344376302,2.95,186.99,186.98,3.05]
[1755344376498,6.99997377,186.99,186.98,3.05]
[1755344378002,6.99997377,186.99,186.94,5.3457]
[1755344378303,6.99997377,186.98,186.96,4.89482417]
[1755344378504,2.95,186.98,186.97,3.05]
[1755344378707,7.07341744,186.98,186.97,3.05]
[1755344380003,4.12341744,186.98,186.97,3.05]
[1755344382808,7.07341744,186.98,186.97,3.05]
[1755344385307,4.12341744,186.98,186.96,1.84482417]
[1755344385508,2.95,186.97,186.96,1.84482417]
[1755344385910,2.95,187.01,186.97,3.05]
[1755344386104,4.11563004,187.0,186.97,3.05]
[1755344386305,7.06563004,186.99,186.97,3.05]
[1755344386608,7.06563004,186.98,186.97,3.05]
[1755344388109,2.95,186.98,186.97,3.05]
[1755344388511,2.95,187.01,186.98,3.05]
[1755344388710,7.15465298,187.0,186.99,4.81482417]
[1755344400715,4.11465298,187.0,186.99,4.81482417]
[1755344401610,0.04009407,187.02,187.0,2.97]
[1755344401806,0.04009407,187.02,187.01,4.81482417]
[1755344402508,0.04009407,187.02,187.01,10.15852417]
[1755344403313,3.04,187.05,187.04,4.81482417]
[1755344403508,7.15378896,187.05,187.04,4.81482417]
[1755344405417,4.11378896,187.05,187.04,10.15762417]
[1755344405721,3.04,187.08,187.05,2.97]
[1755344406011,3.04,187.08,187.07,4.81482417]
[1755344406212,7.15299726,187.08,187.07,4.81482417]
[1755344407414,3.04,187.08,187.07,4.81482417]
[1755344407614,3.04,187.08,187.07,1.84482417]
[1755344408208,7.14974974,187.08,187.06,0.04036523]
[1755344408415,7.14974974,187.07,187.06,0.04036523]
[1755344408908,11.64475929,187.07,187.06,0.04036523]
[1755344409116,3.04,187.06,186.99,4.81482417]
[1755344409316,5.95457391,187.05,186.99,4.81482417]
[1755344409511,3.04,187.03,186.99,4.81482417]
[1755344409718,3.04,187.01,186.99,4.81482417]
[1755344410618,3.04,187.01,186.99,2.97]
[1755344410822,4.10489531,187.0,186.97,2.97]
[1755344411017,3.04,186.98,186.94,2.97]
[1755344411425,3.04,186.98,186.95,2.97]
[1755344411622,4.49500955,187.02,186.94,2.97]
[1755344411818,3.04,186.97,186.94,2.97]
[1755344412219,0.03776934,186.98,186.94,2.97]
[1755344412415,3.04,186.97,186.93,2.8817381]
[1755344412725,3.04,186.97,186.96,2.97]
[1755344414116,0.03776934,186.98,186.97,2.97]
[1755344414829,3.04,187.03,186.97,2.97]
[1755344415028,3.04,187.05,187.01,2.97]
[1755344415222,4.10375339,187.04,187.01,2.97]
[1755344415422,3.04,187.05,187.01,2.97]
[1755344415925,3.04,187.05,187.0,2.8817381]
[1755344415926,3.04,187.03,187.0,2.97]
[1755344416121,4.10329148,187.02,186.97,2.8817381]
[1755344416316,4.49500955,187.05,186.98,2.97]
[1755344416317,3.04,187.0,186.98,2.97]
[1755344416728,4.49500955,187.05,186.98,2.97]
[1755344416930,4.1040556,187.04,186.98,2.97]
[1755344417120,3.04,187.02,186.99,2.97]
[1755344417319,4.49500955,187.05,186.99,2.97]
[1755344417320,3.04,187.0,186.99,2.97]
[1755344418129,3.04,187.04,186.99,2.97]
[1755344418328,4.10393185,187.03,186.99,2.97]
[1755344418524,7.14393185,187.02,186.99,2.97]
[1755344418725,4.10393185,187.01,186.99,2.97]
[1755344418924,3.07,187.04,186.99,2.97]
[1755344419128,7.17412248,187.03,186.99,2.97]
[1755344419428,7.17412248,187.02,186.99,2.97]
[1755344419630,4.49500955,187.06,186.99,5.3442]
[1755344419928,3.07,187.01,187.0,3.03]
[1755344420525,3.07,187.03,187.0,3.03]
[1755344420731,3.07,187.02,187.0,3.03]
[1755344429032,3.07,187.06,187.0,3.03]
[1755344429333,3.07,187.04,187.01,3.03]
[1755344429532,3.07,187.02,187.01,3.03]
[1755344430828,3.07,187.02,187.0,3.03]
[1755344431133,3.07,187.02,187.0,3.06819728]
[1755344431335,3.07,187.02,187.0,0.03819728]
[1755344432035,3.07,187.02,187.0,3.06819728]
[1755344433836,4.10523626,187.01,187.0,3.06819728]
[1755344434035,7.17523626,187.01,187.0,3.06819728]
[1755344436939,7.17523626,187.01,187.0,0.03819728]
[1755344437134,7.17523626,187.01,187.0,3.06819728]
[1755344439138,7.17523626,187.01,187.0,0.03819728]
[1755344443340,7.17523626,187.01,186.95,3.03]
[1755344443341,3.07,187.0,186.95,3.03]
[1755344443642,3.07,186.98,186.95,3.03]
[1755344443844,7.17523626,186.97,186.95,3.03]
[1755344444039,3.07,186.97,186.95,3.03]
[1755344445345,3.07,186.96,186.95,3.03]
[1755344446644,7.19259011,186.96,186.94,3.03]
[1755344446847,3.07,186.96,186.94,3.03]
[1755344447146,3.07,186.96,186.95,3.03]
[1755344447345,7.19259011,186.96,186.95,3.03]
[1755344448343,3.07,186.96,186.95,3.03]
[1755344451448,7.19164984,186.96,186.95,3.03]
[1755344452046,2.83,186.95,186.91,3.0]
[1755344452645,2.83,186.94,186.91,3.0]
[1755344453550,0.04070337,186.98,186.91,3.0]
[1755344453750,2.83,186.96,186.91,3.0]
[1755344453950,4.12271039,186.95,186.91,3.0]
[1755344454146,2.83,186.94,186.91,3.0]
[1755344454949,0.04070337,186.98,186.91,3.0]
[1755344455152,2.83,186.93,186.91,3.0]
[1755344455350,2.83,186.95,186.91,3.0]
[1755344455652,2.83,186.94,186.91,3.0]
[1755344458848,2.83,186.94,186.91,5.3465]
[1755344459153,2.86559824,186.95,186.92,3.0]
[1755344459854,0.03559824,186.95,186.93,3.0]
[1755344460046,2.86559824,186.95,186.93,3.0]
[1755344460852,2.83,186.94,186.93,3.0]
[1755344468666,2.83,186.94,186.93,4.84526703]
[1755344480272,6.95743388,186.94,186.93,4.84526703]
[1755344483672,4.12743388,186.94,186.93,4.84526703]
[1755344484472,7.16743388,186.94,186.93,4.84526703]
[1755344489174,7.16743388,186.94,186.91,1.84526703]
[1755344489375,7.16743388,186.93,186.92,2.86]
[1755344489771,3.04,186.92,186.9,2.86]
[1755344490075,7.24511386,186.91,186.9,2.86]
[1755344490869,7.24511386,186.91,186.89,2.86]
[1755344491174,3.04,186.89,186.87,4.70526703]
[1755344491366,7.24511386,186.88,186.87,2.86]
[1755344493277,3.04,186.87,186.86,2.86]
[1755344493576,7.23519391,186.87,186.86,2.86]
[1755344494172,3.04,186.87,186.86,2.86]
[1755344494569,3.07558896,186.89,186.86,4.70526703]
[1755344494777,4.19368186,186.88,186.87,2.86]
[1755344495278,4.19368186,186.88,186.87,8.2077]
[1755344495478,3.07558896,186.89,186.87,8.2077]
[1755344495778,3.07558896,186.89,186.88,2.86]
[1755344495977,7.26795765,186.89,186.88,2.86]
[1755344497377,3.07558896,186.89,186.88,2.86]
[1755344497575,7.26665578,186.89,186.88,2.86]
[1755344497980,4.22665578,186.89,186.88,4.70526703]
[1755344498181,0.03558896,186.89,186.88,4.70526703]
[1755344498680,3.07558896,186.89,186.88,4.70526703]
[1755344499980,3.07558896,186.89,186.88,1.84526703]
[1755344500281,3.07558896,186.89,186.88,4.70526703]
[1755344501885,3.07558896,186.89,186.88,1.84526703]
[1755344502075,3.04,186.88,186.85,2.86]
[1755344502281,3.04,186.88,186.86,2.86]
[1755344502584,3.04,186.87,186.86,2.86]
[1755344503079,0.03558896,186.89,186.8,129.78]
[1755344503279,3.04,186.87,186.76,2.86]
[1755344503481,3.04,186.85,186.82,2.86]
[1755344504085,3.04,186.85,186.82,4.70526703]
[1755344504287,3.08047802,186.85,186.82,1.84526703]
[1755344504582,3.08047802,186.85,186.84,2.86]
[1755344505780,3.08047802,186.85,186.82,4.70526703]
[1755344506087,3.08047802,186.85,186.82,1.84526703]
[1755344506394,3.08047802,186.85,186.8,1.84526703]
[1755344506585,3.08047802,186.85,186.82,2.86]
[1755344509888,3.08047802,186.85,186.78,2.93]
[1755344510088,0.04047802,186.85,186.81,2.93]
[1755344510495,2.93047802,186.85,186.81,2.93]
[1755344510694,2.89,186.84,186.81,2.93]
[1755344510893,0.04047802,186.85,186.81,2.93]
[1755344511291,2.93047802,186.85,186.83,2.93]
[1755344511791,0.04047802,186.85,186.83,2.93]
[1755344511992,2.89,186.84,186.81,2.93]
[1755344512192,2.89,186.84,186.8,2.88716981]
[1755344512393,2.89,186.84,186.81,2.93]
[1755344512595,2.89,186.83,186.77,8.23766981]
[1755344512902,2.89,186.83,186.82,2.93]
[1755344518492,2.89,186.83,186.8,2.93]
[1755344518894,2.89,186.83,186.82,2.93]
[1755344520396,0.03441853,186.84,186.82,2.93]
[1755344520595,2.92441853,186.84,186.82,2.93]
[1755344520796,2.89,186.83,186.82,2.93]
[1755344522393,2.89,186.83,186.78,5.3501]
[1755344522599,2.89,186.83,186.79,2.93]
[1755344522896,2.89,186.82,186.79,2.93]
[1755344526604,2.89,186.8,186.79,2.93]
[1755344527202,2.89,186.81,186.79,2.93]
[1755344527504,0.03441853,186.84,186.79,2.93]
[1755344527505,2.89,186.8,186.79,2.93]
[1755344528709,2.89,186.8,186.78,2.93]
[1755344529402,2.89,186.8,186.75,2.93]
[1755344529603,2.92158834,186.84,186.72,2.93]
[1755344529604,2.89,186.78,186.72,2.93]
[1755344529900,2.89,186.76,186.69,2.93]
[1755344530107,4.19205646,186.75,186.69,2.93]
[1755344530299,2.89,186.73,186.69,2.93]
[1755344531108,2.9270727,186.73,186.69,2.93]
[1755344531809,2.9270727,186.73,186.67,2.93]
[1755344535710,2.89,186.71,186.68,2.93]
[1755344537013,2.89,186.71,186.65,5.3539]
[1755344537312,2.89,186.71,186.69,2.93]
[1755344539122,2.89,186.71,186.64,3.01]
[1755344541221,2.89,186.71,186.65,3.01]
[1755344543814,4.16786474,186.7,186.65,3.01]
[1755344544014,3.07,186.69,186.65,3.01]
[1755344544222,3.07,186.69,186.63,3.01]
[1755344544916,3.07,186.67,186.63,3.01]
[1755344547129,3.07,186.67,186.64,3.01]
[1755344548030,3.07,186.67,186.63,3.01]
[1755344548236,4.16660068,186.66,186.54,3.01]
[1755344548530,3.07,186.64,186.56,3.01]
[1755344548933,0.03886193,186.62,186.56,3.01]
[1755344549125,3.07,186.61,186.56,3.01]
[1755344551134,0.03886193,186.62,186.55,132.98716981]
[1755344551336,3.07,186.6,186.58,3.01]
[1755344553732,3.07,186.6,186.47,130.18]
[1755344553939,3.07,186.58,186.52,3.01]
[1755344554235,3.07,186.56,186.47,2.88716981]
[1755344554539,3.07,186.54,186.48,3.01]
[1755344555238,3.07,186.52,186.48,3.01]
[1755344555638,3.07,186.52,186.49,3.01]
[1755344556240,4.15420167,186.51,186.45,3.01]
[1755344556542,3.07,186.49,186.46,3.01]
[1755344556730,7.42229664,186.53,186.46,3.01]
[1755344556928,3.07,186.47,186.46,3.01]
[1755344557139,3.07,186.47,186.41,130.4]
[1755344557341,3.07,186.47,186.43,3.01]
[1755344557537,3.07,186.5,186.38,2.88716981]
[1755344557838,3.07,186.48,186.4,3.01]
[1755344558036,0.03438096,186.46,186.4,3.01]
[1755344558232,3.07,186.45,186.4,3.01]
[1755344558433,3.07,186.45,186.39,3.01]
[1755344560732,0.03438096,186.46,186.4,3.01]
[1755344560937,3.07,186.43,186.4,3.01]
[1755344561233,3.07,186.42,186.4,3.01]
[1755344561534,3.07,186.42,186.38,130.54]
[1755344561739,3.07,186.42,186.41,3.01]
[1755344562030,3.07,186.48,186.39,3.01]
[1755344562241,0.03504107,186.43,186.39,3.01]
[1755344562440,3.07,186.42,186.39,3.01]
[1755344563043,3.07,186.42,186.38,130.54]
[1755344563344,3.07,186.42,186.4,3.01]
[1755344564138,0.03504107,186.43,186.4,3.01]
[1755344564338,3.10504107,186.43,186.4,3.01]
[1755344565145,3.07,186.42,186.41,3.01]
[1755344565845,0.03504107,186.43,186.41,3.01]
[1755344566342,0.03504107,186.43,186.39,3.01]
[1755344566343,3.07,186.41,186.39,3.01]
[1755344566741,0.03504107,186.43,186.39,3.01]
[1755344566943,3.07,186.42,186.39,3.01]
[1755344568736,0.03504107,186.43,186.39,3.08]
[1755344568943,3.06504107,186.43,186.39,3.08]
[1755344569947,3.03,186.41,186.39,3.08]
[1755344570843,0.03504107,186.43,186.39,3.08]
[1755344571044,3.03,186.41,186.39,3.08]
[1755344573448,0.03504107,186.43,186.39,3.08]
[1755344573647,7.17610138,186.42,186.4,3.08]
[1755344573848,4.14610138,186.41,186.4,3.08]
[1755344576652,7.17610138,186.41,186.4,3.08]
[1755344576848,4.14610138,186.41,186.4,3.08]
[1755344578349,7.17610138,186.41,186.4,3.08]
[1755344582145,7.17610138,186.41,186.38,130.54]
[1755344582146,4.14610138,186.41,186.38,130.54]
[1755344582347,4.14610138,186.4,186.39,3.08]
[1755344582553,0.03504107,186.43,186.39,3.08]
[1755344582754,7.18411171,186.42,186.4,3.08]
[1755344583054,7.18411171,186.41,186.4,3.08]
[1755344585658,4.15411171,186.41,186.4,3.08]
[1755344585952,7.18411171,186.41,186.4,3.08]
[1755344590958,3.03,186.4,186.39,3.08]
[1755344591159,7.18411171,186.4,186.39,3.08]
[1755344595071,4.15411171,186.4,186.39,3.08]
[1755344595570,7.18411171,186.4,186.39,3.08]
[1755344596471,11.68189497,186.4,186.39,3.08]
[1755344598270,7.18411171,186.4,186.39,3.08]
[1755344600269,8.52445293,186.4,186.39,3.08]
[1755344600970,7.18411171,186.4,186.39,3.08]
[1755344601173,8.52445293,186.4,186.39,3.08]
[1755344601574,8.48445293,186.4,186.39,3.08]
[1755344602268,7.14411171,186.4,186.39,3.08]
[1755344603472,11.65929299,186.4,186.39,3.08]
[1755344605284,7.14411171,186.4,186.39,3.08]
[1755344605578,7.14411171,186.4,186.38,130.54]
[1755344605882,7.14411171,186.39,186.38,133.62]
[1755344608178,7.14411171,186.39,186.38,3.08]
[1755344608482,2.99,186.38,186.36,3.08]
[1755344609582,0.03779892,186.39,186.36,3.08]
[1755344609782,2.99,186.37,186.36,3.08]
[1755344611982,2.99,186.37,186.35,132.27605842]
[1755344611983,4.18104909,186.37,186.22,11.84980554]
[1755344612184,2.99,186.35,186.3,1.85605842]
[1755344612389,2.99,186.33,186.31,3.08]
[1755344613384,1.89154997,186.34,186.22,0.93416549]
[1755344613582,2.99,186.31,186.28,3.08]
[1755344613784,2.99,186.29,186.28,3.08]
[1755344614089,0.038771,186.31,186.28,133.8]
[1755344614287,0.038771,186.31,186.29,4.93605842]
[1755344614488,2.99,186.31,186.3,3.08]
[1755344615793,3.02942711,186.32,186.3,3.08]
[1755344616296,0.03942711,186.32,186.29,3.08]
[1755344616793,0.03942711,186.32,186.28,3.08]
[1755344616993,2.99,186.31,186.28,3.08]
[1755344617494,0.03942711,186.32,186.28,3.08]
[1755344617695,2.99,186.3,186.28,3.08]
[1755344620098,0.03942711,186.32,186.28,3.08]
[1755344620099,0.03942711,186.32,186.28,5.3645]
[1755344620292,3.02942711,186.32,186.29,3.08]
[1755344622096,2.99,186.31,186.29,3.08]
[1755344622293,0.03942711,186.32,186.28,5.3645]
[1755344622494,3.02942711,186.32,186.29,3.08]
[1755344622893,2.99,186.31,186.29,3.08]
[1755344625202,2.99,186.31,186.28,133.7]
[1755344625398,2.99,186.31,186.29,3.08]
[1755344625595,3.02942711,186.32,186.27,133.5026433]
[1755344625900,3.02942711,186.32,186.3,3.08]
[1755344626698,2.99,186.31,186.27,133.5026433]
[1755344627302,2.99,186.31,186.28,3.08]
[1755344627999,2.99,186.31,186.28,8.4444]
[1755344628204,2.99,186.3,186.28,5.3644]
[1755344628704,2.99,186.3,186.29,3.0]
[1755344629904,0.03942711,186.32,186.29,3.0]
[1755344630103,3.0,186.31,186.29,3.0]
[1755344631209,3.0,186.31,186.3,3.0]
[1755344631902,3.0,186.31,186.27,138.8674433]
[1755344632107,3.0,186.31,186.28,3.0]
[1755344632606,3.0,186.31,186.29,3.0]
[1755344632806,0.03942711,186.32,186.29,3.0]
[1755344633203,3.03942711,186.32,186.29,3.0]
[1755344633402,3.03942711,186.32,186.31,3.0]
[1755344635604,3.03942711,186.32,186.3,4.85753659]
[1755344635803,3.0,186.31,186.3,1.85753659]
[1755344637008,3.0,186.31,186.3,4.85753659]
[1755344637505,3.0,186.31,186.3,3.0]
[1755344637705,3.0,186.31,186.3,1.85753659]
[1755344637901,3.0,186.31,186.21,48.77380417]
[1755344637902,3.0,186.31,186.28,4.85753659]
[1755344638101,3.0,186.31,186.28,1.85753659]
[1755344638300,3.0,186.31,186.29,3.0]
[1755344638704,3.03553503,186.31,186.28,1.85753659]
[1755344639203,3.03553503,186.31,186.26,132.41753659]
[1755344639498,3.03553503,186.31,186.27,3.0]
[1755344639700,3.03553503,186.31,186.28,3.0]
[1755344642011,3.03553503,186.31,186.29,3.0]
[1755344642507,3.03553503,186.31,186.29,4.85753659]
[1755344642702,3.03553503,186.31,186.3,3.0]
[1755344643005,0.03553503,186.31,186.3,3.0]
[1755344643512,3.0,186.34,186.29,1.89186396]
[1755344643712,71.0888093,186.4,186.33,1.85753659]
[1755344643913,3.0,186.35,186.34,3.0]
[1755344644410,3.0,186.35,186.22,3.0]
[1755344644411,4.24991716,186.35,186.22,3.0]
[1755344644712,3.0,186.33,186.28,3.0]
[1755344645008,4.24928264,186.32,186.28,3.0]
[1755344645313,3.0,186.31,186.28,3.0]
[1755344646407,3.0,186.31,186.25,138.92862751]
[1755344646909,3.0,186.31,186.28,3.0]
[1755344648714,4.51518128,186.36,186.25,138.92862751]
[1755344648916,3.0,186.34,186.26,3.0]
[1755344649216,3.0,186.32,186.26,3.0]
[1755344649414,3.0,186.3,186.27,3.0]
[1755344650616,3.0,186.29,186.27,3.0]
[1755344651011,4.51518128,186.34,186.28,3.0]
[1755344651209,4.2611418,186.33,186.29,3.0]
[1755344651414,4.2611418,186.32,186.29,3.0]
[1755344651615,3.0,186.36,186.31,3.0]
[1755344651812,3.0,186.34,186.31,3.0]
[1755344652016,7.26085589,186.33,186.32,3.0]
[1755344653614,4.26085589,186.33,186.32,3.0]
[1755344655415,7.26085589,186.33,186.32,3.0]
[1755344656610,7.26085589,186.33,186.28,2.90322751]
[1755344656816,3.0,186.31,186.29,3.0]
[1755344659413,3.0,186.31,186.28,2.90322751]
[1755344659713,3.0,186.31,186.3,2.93]
[1755344660019,7.27011582,186.31,186.3,2.93]
[1755344661522,2.98,186.3,186.28,2.90322751]
[1755344662019,2.98,186.3,186.28,8.26782751]
[1755344662214,4.51518128,186.35,186.29,2.93]
[1755344662419,4.27080751,186.34,186.29,2.93]
[1755344662622,2.98,186.31,186.29,2.93]
[1755344663215,2.98,186.3,186.28,8.26782751]
[1755344663620,2.98,186.3,186.29,2.93]
[1755344664422,2.98,186.34,186.29,8.2942]
[1755344664628,4.27087384,186.33,186.3,2.93]
[1755344664916,4.27087384,186.32,186.3,2.93]
[1755344665120,4.27087384,186.31,186.3,8.294]
[1755344666013,4.27087384,186.31,186.3,11.19722751]
[1755344666921,7.25087384,186.31,186.3,2.93]
[1755344667222,2.98,186.3,186.28,2.93]
[1755344667424,2.98,186.3,186.28,8.2946]
[1755344667617,2.98,186.3,186.29,2.93]
[1755344667822,7.25099844,186.3,186.29,2.93]
[1755344668523,7.25099844,186.3,186.28,2.93]
[1755344668823,2.98,186.3,186.28,2.93]
[1755344670824,4.51518128,186.34,186.29,2.93]
[1755344671028,2.98,186.32,186.29,2.93]
[1755344671230,4.27010499,186.31,186.29,8.2941]
[1755344671431,2.98,186.32,186.3,2.93]
[1755344671631,4.27060935,186.31,186.3,2.93]
[1755344671828,2.98,186.32,186.3,2.93]
[1755344672325,2.98,186.32,186.3,5.364]
[1755344672525,2.98,186.32,186.31,2.93]
[1755344672732,7.25060619,186.32,186.31,2.93]
[1755344674723,4.27060619,186.32,186.31,2.93]
[1755344675927,4.27060619,186.32,186.31,8.2937]
[1755344677335,2.98,186.34,186.32,5.3634]
[1755344677529,4.27009685,186.33,186.32,5.3634]
[1755344677925,7.25009685,186.33,186.32,2.93]
[1755344680634,2.98,186.32,186.3,8.26722751]
[1755344681230,2.98,186.32,186.31,2.93]
[1755344681431,7.25085944,186.32,186.31,2.93]
[1755344683133,7.25085944,186.32,186.31,8.2937]
[1755344684532,4.27085944,186.32,186.31,5.3637]
[1755344684735,7.25085944,186.32,186.31,8.2937]
[1755344685030,4.27085944,186.32,186.31,8.2937]
[1755344685636,7.25085944,186.32,186.31,8.2937]
[1755344686833,2.98,186.34,186.32,5.3634]
[1755344687139,4.27011261,186.33,186.32,8.2934]
[1755344687838,7.25011261,186.33,186.32,8.2934]
[1755344688336,7.25011261,186.33,186.32,2.93]
[1755344689935,7.25011261,186.33,186.32,8.2934]
[1755344690138,7.25011261,186.33,186.32,2.93]
[1755344693036,7.25011261,186.33,186.32,8.2934]
[1755344694743,7.25011261,186.33,186.32,2.93]
[1755344694938,7.25121852,186.33,186.32,2.93]
[1755344695543,7.37121852,186.33,186.32,8.2934]
[1755344695744,7.37121852,186.33,186.3,2.90322751]
[1755344695939,7.37238431,186.32,186.31,2.89]
[1755344696743,4.27238431,186.32,186.25,2.90322751]
[1755344696945,3.1,186.3,186.26,2.89]
[1755344697145,4.27238431,186.29,186.26,2.89]
[1755344697346,3.1,186.28,186.26,2.89]